Workbook

Sheet Strike-Dip Calculator
A1: This worksheet calculates the strike and dip, given 3 points on a plane. | I1: Last modified: Dec. 4, 2011 by LEH | Q1: This chart shows the strike of the feature
A2: The calculation finds the pole to the plane by computing the cross product of two vectors constructed between 3 pts on a plane.
A3: A chart for plotting the strike line is given at right.
A4: You can copy-paste the formulas in Columns 11-17 for additional points that you add. | P4: Output values of strike and dip.
A5: Row 10 provides an example… | P5: Strike is consistent with right hand rule
A6: Or use the macros to read/write Global Mapper text files... | F6: UTM Coordinates | P6: Strike vector has been corrected for pole orientation
A7: Paste coordinates of your points for a geologic feature below in columns 2-10. | V7: Data for writing to files…
B8: Point 1 | E8: Point 2 | H8: Point 3 | K8: Calculated Values | R8: Strike vector | X8: UTM Coordinates
A9: ID | B9: Easting, m | C9: Northing, m | D9: Elevation, m | E9: Easting, m | F9: Northing, m | G9: Elevation, m | H9: Easting, m | I9: Northing, m | J9: Elevation, m | K9: U1 i | L9: -U2 j | M9: U3 k | N9: easting | O9: northing | P9: Strike, degrees | Q9: Dip, degrees | R9: start x | S9: end x | T9: start y | U9: end y | V9: =P9 -> Strike, degrees | W9: =Q9 -> Dip, degrees | X9: Easting,m | Y9: Northing, m | Z9: Elevation, m | AA9: Point ID | AB9: Dot Product of vectors | AC9: Problem Pts
A10: Example Row | B10: 591506.173 | C10: 3719214.816 | D10: 88.916 | E10: 591529.925 | F10: 3719201.434 | G10: 102.35 | H10: 591533.606 | I10: 3719187.383 | J10: 95.625 | K10: =((C10-F10)*(J10-G10)-(I10-F10)*(D10-G10)) -> -278.755084 | L10: =-((B10-E10)*(J10-G10)-(H10-E10)*(D10-G10)) -> -209.182754 | M10: =((B10-E10)*(I10-F10)-(H10-E10)*(C10-F10)) -> 284.48021 | N10: =IF(M10<0,L10,-L10) -> 209.182754 | O10: =IF(M10>0,K10,-K10) -> -278.755084 | P10: =DEGREES(IF(N10>=0,ACOS(O10/(N10^2+O10^2)^0.5),2*PI()-ACOS(O10/(N10^2+O10^2)^0.5))) -> 143.114788 | Q10: =DEGREES(ASIN((K10^2+L10^2)^0.5/(K10^2+L10^2+M10^2)^0.5)) -> 50.7763776 | R10: 0 | S10: =N10/(N10^2+O10^2)^0.5 -> 0.6002138073 | T10: 0 | U10: =O10/(N10^2+O10^2)^0.5 -> -0.7998395999 | V10: =P10 -> 143.114788 | W10: =Q10 -> 50.7763776 | X10: =AVERAGE(B10,E10,H10) -> 591523.2347 | Y10: =AVERAGE(C10,F10,I10) -> 3719201.211 | Z10: =AVERAGE(D10,G10,J10) -> 95.63033333 | AB10: 0.1 | AC10: =IF(1-ABS(AB10)<0.1,"HEY","") -> 
V11: 291 | W11: 29 | X11: 591136.797 | Y11: 3719108.253 | Z11: 85.955 | AA11: PC02
V12: 275 | W12: 29 | X12: 591234.105 | Y12: 3719198.442 | Z12: 93.311 | AA12: PC03

Sheet Formulas-ReadOnly
A2: Formulas used in the strike dip calculator
A3: Given three points: P1 (x1, y1, z1), P2 (x2, y2, z2), and P3 (x3, y3, z3). Let the vector from P2 to P1 be V1, and the vector from P2 to P3 be V2.
A4: Find the pole to the plane, then determine strike and dip from the components of the pole.
A5: V1
A6: V2
A7: Cross product
A8: Components of pole
J10: If the sign of U3 is negative, we need to change the direction of the strike line, and we do so by changing the sign of (E,N) to (-E,-N).
A11: Strike line
A12: Bearing b of strike
C13: .
A14: Azimuth of strike | C14: if 0<= b <=180, b* 180/p; else 360 - b*180/p
A17: Dip angle
C18: .
A21: Paste coordinates of your points for a geologic feature below in columns 2-10.
B22: Point 1 | E22: Point 2 | F22: UTM Coordinates | H22: Point 3 | K22: Calculated Values | R22: Strike vector | V22: Centroid of Plane, UTM Coordinates
A23: Geologic Feature ID | B23: Easting, m | C23: Northing, m | D23: Elevation, m | E23: Easting, m | F23: Northing, m | G23: Elevation, m | H23: Easting, m | I23: Northing, m | J23: Elevation, m | K23: U1 i | L23: -U2 j | M23: U3 k | N23: easting | O23: northing | P23: Strike, degrees | Q23: Dip, degrees | R23: start x | S23: end x | T23: start y | U23: end y | V23: Easting,m | W23: Northing, m | X23: Elevation, m
A24: sd-1 | B24: 591506.173 | C24: 3719214.816 | D24: 88.916 | E24: 591529.925 | F24: 3719201.434 | G24: 102.35 | H24: 591533.606 | I24: 3719187.383 | J24: 95.625 | K24: =((C24-F24)*(J24-G24)-(I24-F24)*(D24-G24)) -> -278.755084 | L24: =-((B24-E24)*(J24-G24)-(H24-E24)*(D24-G24)) -> -209.182754 | M24: =((B24-E24)*(I24-F24)-(H24-E24)*(C24-F24)) -> 284.48021 | N24: =IF(M24>0,-L24,L24) -> 209.182754 | O24: =IF(M24>0,K24,-K24) -> -278.755084 | P24: =DEGREES(IF(N24>=0,ACOS(O24/(N24^2+O24^2)^0.5),2*PI()-ACOS(O24/(N24^2+O24^2)^0.5))) -> 143.114788 | Q24: =DEGREES(ASIN((K24^2+L24^2)^0.5/(K24^2+L24^2+M24^2)^0.5)) -> 50.7763776 | R24: 0 | S24: =N24/(N24^2+O24^2)^0.5 -> 0.6002138073 | T24: 0 | U24: =O24/(N24^2+O24^2)^0.5 -> -0.7998395999 | V24: =AVERAGE(B24,E24,H24) -> 591523.2347 | W24: =AVERAGE(C24,F24,I24) -> 3719201.211 | X24: =AVERAGE(D24,G24,J24) -> 95.63033333
